bitfinex-derivatives/quotes_SOLF0:USTF0_20250309
["timestamp","ask_amount","ask_price","bid_price","bid_amount"]
[1741486806265,7.2501,137.96,137.93,11.44060456]
[1741486806568,11.44060456,137.98,137.92,11.2811]
[1741486806762,7.2507,137.95,137.92,4.0295]
[1741486807363,7.2515,137.93,137.89,46.79360456]
[1741486807566,11.44060456,137.94,137.92,0.04777963]
[1741486807967,18.69160456,137.94,137.92,0.04777963]
[1741486809271,11.44060456,137.94,137.92,0.04777963]
[1741486810165,37.66060456,137.94,137.92,0.04777963]
[1741486812070,37.66060456,137.94,137.85,1.8816]
[1741486812270,11.44060456,137.9,137.85,1.8816]
[1741486812571,11.44060456,137.9,137.88,7.2536]
[1741486813166,11.49468135,137.9,137.88,7.30085041]
[1741486813675,0.05407679,137.9,137.89,7.2534]
[1741486815770,11.44060456,137.96,137.88,37.72785497]
[1741486815975,11.44060456,137.96,137.93,7.2509]
[1741486816173,11.44060456,137.96,137.9,11.44060456]
[1741486816769,7.2508,137.94,137.9,18.69350456]
[1741486816970,44.98536811,137.94,137.92,0.05149635]
[1741486817481,7.2513,137.93,137.92,0.05149635]
[1741486819873,7.2513,137.93,137.83,13.47740456]
[1741486819874,3.62,137.93,137.83,13.47740456]
[1741486820077,11.44060456,137.89,137.83,13.47740456]
[1741486820270,7.2552,137.86,137.83,2.0368]
[1741486820474,11.44060456,137.87,137.81,22.66640456]
[1741486820870,0.04594725,137.85,137.83,0.05291861]
[1741486821466,33.54154725,137.85,137.83,0.05291861]
[1741486821974,26.28594725,137.85,137.83,0.05291861]
[1741486824771,26.28594725,137.85,137.83,7.30941861]
[1741486826166,26.28594725,137.85,137.84,7.256]
[1741486845286,26.28594725,137.85,137.83,0.05291861]
[1741486845488,37.72655181,137.85,137.83,0.05291861]
[1741486847191,37.72655181,137.85,137.76,4.0082]
[1741486847494,11.44060456,137.82,137.76,4.0082]
[1741486847688,33.498,137.81,137.77,7.2594]
[1741486847889,33.498,137.81,137.75,11.44060456]
[1741486848392,0.0524069,137.79,137.77,0.05312139]
[1741486849994,0.0524069,137.79,137.77,11.49372595]
[1741486850386,0.0524069,137.79,137.78,7.2592]
[1741486850592,26.24,137.81,137.77,11.49372595]
[1741486850895,26.24,137.81,137.79,11.44060456]
[1741486851098,26.24,137.81,137.8,7.2582]
[1741486851389,37.68060456,137.84,137.8,7.2582]
[1741486851890,37.68060456,137.84,137.81,0.05225539]
[1741486851891,0.05559173,137.83,137.81,0.05225539]
[1741486852900,0.05559173,137.83,137.81,7.30975539]
[1741486853095,0.05559173,137.83,137.81,0.05225539]
[1741486853594,0.05559173,137.83,137.82,7.2571]
[1741486863005,26.24,137.87,137.81,11.49285995]
[1741486863201,11.44060456,137.86,137.81,11.49285995]
[1741486863399,18.69570456,137.86,137.81,11.49285995]
[1741486863600,18.69570456,137.86,137.82,7.2569]
[1741486863797,11.44060456,137.86,137.81,0.05225539]
[1741486864003,0.04700297,137.85,137.81,0.05225539]
[1741486864502,0.04700297,137.85,137.83,7.2563]
[1741486865301,26.24,137.84,137.81,0.05225539]
[1741486865609,11.44060456,137.82,137.81,0.05225539]
[1741486869411,18.69770456,137.82,137.81,0.05225539]
[1741486869611,11.44060456,137.82,137.74,4.1124]
[1741486869810,11.44060456,137.79,137.74,4.1124]
[1741486870013,11.44060456,137.79,137.76,7.2599]
[1741486870701,26.24,137.78,137.76,7.31400193]
[1741486871624,11.44060456,137.77,137.76,0.00297891]
[1741486872614,18.70030456,137.77,137.76,0.00297891]
[1741486872822,11.44060456,137.77,137.69,11.44060456]
[1741486873024,11.44060456,137.72,137.67,41.66984337]
[1741486873223,26.24,137.71,137.68,7.2641]
[1741486873422,26.24,137.71,137.67,11.44060456]
[1741486873821,26.24,137.71,137.68,7.264]
[1741486874022,0.04818451,137.7,137.68,7.318442]
[1741486874316,0.04818451,137.7,137.68,0.054442]
[1741486874523,0.04818451,137.7,137.69,7.2639]
[1741486880323,11.44060456,137.74,137.73,7.2618]
[1741486880524,26.26,137.75,137.7,11.44060456]
[1741486881532,26.26,137.75,137.74,7.2613]
[1741486881726,26.26,137.75,137.71,0.05533904]
[1741486881932,11.44060456,137.73,137.71,0.05533904]
[1741486882231,26.26,137.72,137.71,0.05533904]
[1741486884828,33.5224,137.72,137.71,0.05533904]
[1741486888029,26.26,137.72,137.71,0.05533904]
[1741486888835,33.5224,137.72,137.71,0.05533904]
[1741486889533,7.2637,137.7,137.65,7.2656]
[1741486889730,37.70060456,137.69,137.65,7.2656]
[1741486890135,37.70060456,137.69,137.66,7.2655]
[1741486890332,37.70060456,137.69,137.64,11.44060456]
[1741486890639,11.44060456,137.67,137.65,0.05064316]
[1741486890826,26.26,137.66,137.65,0.05064316]
[1741486891433,33.5255,137.66,137.65,0.05064316]
[1741486892236,26.26,137.66,137.65,0.05064316]
[1741486892433,0.05222741,137.68,137.65,0.05064316]
[1741486892737,0.05222741,137.68,137.65,7.31674316]
[1741486894134,0.05222741,137.68,137.65,11.49124772]
[1741486894337,11.44060456,137.72,137.67,11.44060456]
[1741486894539,11.44060456,137.73,137.67,37.70060456]
[1741486894737,11.44060456,137.74,137.71,7.2628]
[1741486895132,11.44060456,137.74,137.69,11.44060456]
[1741486895334,0.04899545,137.73,137.7,0.0488409]
[1741486895534,0.04899545,137.73,137.71,11.44060456]
[1741486895733,37.70060456,137.77,137.71,13.37680456]
[1741486895933,109.84890056,137.78,137.73,11.44060456]
[1741486896134,109.84890056,137.78,137.74,26.26]
[1741486896537,109.84890056,137.78,137.74,33.5212]
[1741486896740,11.44060456,137.77,137.74,33.5212]
[1741486896942,11.49294372,137.77,137.75,0.05520317]
[1741486897134,0.05233916,137.77,137.76,7.2603]
[1741486897335,109.84890056,137.78,137.75,0.05520317]
[1741486897535,94.21690056,137.78,137.75,0.05520317]
[1741486897839,94.21690056,137.78,137.77,7.2597]
[1741486898437,17.9262159,137.83,137.77,26.26]
[1741486898637,44.1862159,137.85,137.8,7.2578]
[1741486898841,0.04824155,137.81,137.8,7.2578]
[1741486899044,0.04824155,137.82,137.8,7.2578]
[1741486899240,0.04824155,137.82,137.79,0.05098562]
[1741486900545,0.04824155,137.82,137.8,7.2578]
[1741486901541,0.04824155,137.82,137.81,7.2576]
[1741486902745,0.04824155,137.82,137.8,26.26]
[1741486903840,0.04824155,137.82,137.79,0.05098562]
[1741486904039,7.30574155,137.82,137.79,0.05098562]
[1741486904842,7.2582,137.8,137.79,0.05098562]
[1741486905245,0.04824155,137.82,137.79,0.05098562]
[1741486908444,0.04824155,137.82,137.8,7.2581]
[1741486908640,0.04824155,137.82,137.79,0.05098562]
[1741486909236,0.04824155,137.82,137.81,7.2576]
[1741486910243,44.1662159,137.87,137.79,0.05098562]
[1741486910445,44.1662159,137.87,137.84,7.2557]
[1741486910946,44.1662159,137.87,137.83,7.2564]
[1741486911348,51.4207159,137.87,137.83,7.2564]
[1741486911551,51.4207159,137.87,137.84,0.04887971]
[1741486911749,17.9262159,137.87,137.84,0.04887971]
[1741486914151,17.9262159,137.87,137.84,7.30487971]
[1741486914348,28.2617,137.88,137.84,0.04887971]
[1741486914547,46.1584159,137.89,137.84,0.04887971]
[1741486914849,46.1584159,137.89,137.85,7.2552]
[1741486916254,53.4119159,137.89,137.85,7.2552]
[1741486916750,46.1584159,137.89,137.84,0.04887971]
[1741486917154,17.9262159,137.87,137.84,0.04887971]
[1741486917356,25.1810159,137.87,137.84,0.04887971]
[1741486918652,17.9262159,137.87,137.84,0.04887971]
[1741486919349,25.1809159,137.87,137.84,0.04887971]
[1741486919555,17.9262159,137.87,137.84,0.04887971]
[1741486919754,46.1584159,137.89,137.84,0.04887971]
[1741486920457,7.2541,137.88,137.84,7.30487971]
[1741486921560,46.1584159,137.89,137.84,0.04887971]
[1741486922661,7.2555,137.85,137.84,0.04887971]
[1741486922858,33.4955,137.85,137.84,0.04887971]
[1741486923765,26.24,137.85,137.84,0.04887971]
[1741486924260,33.4955,137.85,137.84,0.04887971]
[1741486925461,51.4217159,137.85,137.84,0.04887971]
[1741486925857,44.1662159,137.85,137.84,0.04887971]
[1741486927062,26.24,137.85,137.84,0.04887971]
[1741486928264,26.24,137.88,137.84,0.04887971]
[1741486928659,26.24,137.88,137.85,7.2553]
[1741486929065,19.9089159,137.91,137.84,0.04887971]
[1741486929365,33.4732,137.9,137.86,7.2547]
[1741486929758,33.4732,137.9,137.87,0.05106801]
[1741486931664,7.2536,137.89,137.87,0.05106801]
[1741486935164,7.2539,137.88,137.87,0.05106801]
[1741486935465,18.7148517,137.88,137.87,0.05106801]
[1741486937366,11.4609517,137.88,137.87,0.05106801]
[1741486941969,11.4609517,137.88,137.87,7.30556801]
[1741486942162,11.4609517,137.9,137.87,0.05106801]
[1741486942570,11.4609517,137.9,137.87,7.30536801]
[1741486943067,11.4609517,137.9,137.87,0.05106801]
[1741486943667,11.4609517,137.88,137.87,0.05106801]
[1741486943869,37.6809517,137.88,137.87,0.05106801]
[1741486945369,11.4609517,137.9,137.87,0.05106801]
[1741486946064,11.4609517,137.92,137.87,0.05106801]
[1741486946470,11.4609517,137.92,137.89,7.2531]
[1741486947375,33.4714,137.93,137.89,7.2531]
[1741486948067,30.01322043,137.94,137.88,17.89365171]
[1741486948268,30.01322043,137.94,137.9,26.22]
[1741486948671,30.01322043,137.94,137.92,7.2518]
[1741486949871,37.26262043,137.97,137.92,7.2518]
[1741486950066,37.26262043,137.97,137.91,0.04863725]
[1741486950274,17.89365171,137.96,137.91,0.04863725]
[1741486950974,17.89365171,137.92,137.91,0.04863725]
[1741486951274,51.36545171,137.92,137.91,0.04863725]
[1741486953063,7.254,137.88,137.84,2.0147]
[1741486953664,7.254,137.88,137.83,7.2566]
[1741486953870,26.22,137.89,137.82,2.026]
[1741486954276,0.04617904,137.87,137.84,0.05030106]
[1741486954474,7.255,137.86,137.84,0.05030106]
[1741486955473,7.30077904,137.87,137.84,0.05030106]
[1741486956976,7.2555,137.85,137.84,0.05030106]
[1741486961373,44.11365171,137.86,137.77,1.8919]
[1741486961374,44.11365171,137.86,137.77,7.2594]
[1741486961573,17.89365171,137.82,137.73,3.951]
[1741486961879,7.2587,137.79,137.74,7.2612]
[1741486962279,26.22,137.78,137.74,7.2612]
[1741486962583,26.27553674,137.78,137.75,0.05549859]
[1741486964486,26.27553674,137.78,137.76,7.2602]
[1741486965583,26.27553674,137.78,137.75,0.05549859]
[1741486966883,26.27553674,137.78,137.75,7.31629859]
[1741486968786,26.27553674,137.78,137.76,7.2598]
[1741486971178,51.42868845,137.78,137.75,0.05549859]
[1741486971381,44.16918845,137.78,137.75,0.05549859]
[1741486972890,44.16918845,137.78,137.75,7.31609859]
[1741486973083,0.05553674,137.78,137.75,0.05549859]
[1741486973382,17.89365171,137.8,137.75,0.05549859]
[1741486973383,26.24,137.85,137.76,17.89365171]
[1741486973584,26.24,137.85,137.8,7.2578]
[1741486973585,33.4956,137.85,137.8,7.2578]
[1741486973788,26.24,137.85,137.8,7.2578]
[1741486974688,0.04340157,137.84,137.81,0.05502822]
[1741486975084,17.93705328,137.84,137.81,0.05502822]
[1741486975487,7.2566,137.83,137.81,0.05502822]
[1741486975787,26.24,137.82,137.81,0.05502822]
[1741486975984,44.13365171,137.82,137.73,26.24]
[1741486976285,17.89365171,137.8,137.71,6.0735]
[1741486976482,26.24,137.79,137.71,4.0774]
[1741486976682,26.24,137.79,137.74,7.261]
[1741486977084,0.0545187,137.78,137.75,0.04857727]
[1741486977792,17.89365171,137.76,137.75,0.04857727]
[1741486977991,44.13365171,137.76,137.68,17.89365171]
[1741486978489,51.39395171,137.76,137.68,17.89365171]
[1741486978689,44.13365171,137.76,137.68,17.89365171]
[1741486979085,0.05164124,137.73,137.71,0.05168751]
[1741486980091,26.29164124,137.73,137.71,0.05168751]
[1741486981087,17.89365171,137.72,137.71,0.05168751]
[1741486982398,26.29164124,137.73,137.71,0.05168751]
[1741486983898,26.29164124,137.73,137.71,7.31458751]
[1741486984199,26.29164124,137.73,137.71,0.05168751]
[1741486984694,0.05164124,137.73,137.71,0.05168751]
[1741486984900,26.24,137.72,137.71,0.05168751]
[1741486988802,51.39605171,137.72,137.71,0.05168751]
[1741486990805,44.13365171,137.72,137.71,0.05168751]
[1741486993607,26.24,137.72,137.71,0.05168751]
[1741486994417,0.05164124,137.73,137.71,0.05168751]
[1741486995015,0.05164124,137.73,137.72,7.2624]
[1741486997115,0.05164124,137.73,137.71,7.31438751]
[1741486997517,0.05164124,137.73,137.71,0.05168751]
[1741486998816,0.05164124,137.73,137.72,7.2624]
[1741487008126,0.05164124,137.73,137.71,0.05168751]
[1741487009427,0.05164124,137.73,137.72,7.2624]
[1741487015031,0.05164124,137.73,137.71,0.05168751]
[1741487015627,0.05164124,137.73,137.72,7.2624]
[1741487018538,26.29164124,137.73,137.71,0.05168751]
[1741487018731,11.47758971,137.72,137.71,0.05168751]
[1741487019236,11.47758971,137.72,137.71,7.31448751]
[1741487020041,11.47758971,137.72,137.71,0.05168751]
[1741487020837,11.47758971,137.72,137.71,7.31458751]
[1741487021039,11.47758971,137.72,137.71,0.05168751]
[1741487026143,11.47758971,137.72,137.71,7.31458751]
[1741487027749,11.47758971,137.72,137.71,0.05168751]
[1741487028347,11.47758971,137.72,137.71,7.31458751]
[1741487035654,0.05164124,137.73,137.72,7.2624]
[1741487037361,0.05164124,137.73,137.71,7.31428751]
[1741487037556,0.05164124,137.73,137.71,0.05168751]
[1741487038463,0.05164124,137.73,137.72,7.2624]
[1741487040466,0.05164124,137.73,137.71,0.05168751]
[1741487040661,11.47758971,137.72,137.71,0.05168751]
[1741487042066,11.47758971,137.72,137.71,7.31458751]
[1741487043964,0.05164124,137.73,137.72,7.2624]
[1741487047071,0.05164124,137.73,137.71,0.05168751]
[1741487047272,11.52923095,137.73,137.71,0.05168751]
[1741487055377,11.52923095,137.73,137.71,7.31448751]
[1741487057470,11.52923095,137.73,137.71,0.05168751]
[1741487058581,18.79133095,137.73,137.71,0.05168751]
[1741487059779,11.52923095,137.73,137.71,0.05168751]
[1741487061777,11.52923095,137.73,137.71,7.31458751]
[1741487062278,11.52923095,137.73,137.71,0.05168751]
[1741487064377,11.52923095,137.73,137.71,7.31438751]
[1741487066477,0.05164124,137.73,137.72,7.2624]
[1741487067389,11.52923095,137.73,137.71,0.05168751]
[1741487067582,11.52923095,137.73,137.71,7.31438751]
[1741487070990,11.52923095,137.73,137.71,0.05168751]
[1741487072687,33.5024,137.72,137.71,0.05168751]
[1741487077489,26.24,137.72,137.63,11.47758971]
[1741487077792,11.47758971,137.67,137.63,7.2669]
[1741487078391,11.47758971,137.67,137.61,17.37268971]
[1741487078695,11.47758971,137.65,137.64,0.05512696]
[1741487079994,0.05344692,137.66,137.64,0.05512696]
[1741487080590,11.47758971,137.65,137.64,0.05512696]
[1741487082693,37.71758971,137.65,137.64,0.05512696]
[1741487093401,37.71758971,137.65,137.64,7.32172696]
[1741487099209,11.47758971,137.65,137.64,7.32172696]
[1741487104016,0.05344692,137.66,137.65,7.2661]
[1741487105624,0.05344692,137.66,137.64,7.32152696]
[1741487105919,26.29344692,137.66,137.64,0.05512696]
[1741487106515,26.29344692,137.66,137.65,7.2661]
[1741487117629,26.29344692,137.66,137.64,7.32152696]
[1741487118123,26.29344692,137.66,137.64,0.05512696]
[1741487118318,26.29344692,137.66,137.65,7.2661]
[1741487127526,0.05344692,137.66,137.65,7.2661]
[1741487127726,11.47758971,137.69,137.68,7.2645]
[1741487131234,11.47758971,137.69,137.67,7.31960862]
[1741487131531,11.47758971,137.69,137.67,0.05480862]
[1741487132425,11.47758971,137.69,137.68,7.2645]
[1741487132826,18.74148971,137.69,137.67,0.05480862]
[1741487133232,26.22,137.68,137.67,0.05480862]
[1741487134940,26.22,137.68,137.67,7.31980862]
[1741487135644,26.22,137.68,137.67,0.05480862]
[1741487137240,33.4845,137.68,137.67,0.05480862]
[1741487138442,7.2661,137.65,137.59,11.47758971]
[1741487138645,11.47758971,137.63,137.57,39.74788971]
[1741487138837,11.47758971,137.63,137.6,7.2684]
[1741487139439,11.53158031,137.63,137.6,7.31648029]
[1741487140635,11.47758971,137.61,137.6,0.04808029]
[1741487141243,11.47758971,137.61,137.6,7.31678029]
[1741487144648,37.75158031,137.63,137.62,7.2676]
[1741487150553,37.75158031,137.63,137.6,0.04808029]
[1741487151048,37.75158031,137.63,137.6,7.31638029]
[1741487151654,37.75158031,137.63,137.6,0.04808029]
[1741487152447,37.75158031,137.63,137.62,7.2676]
[1741487152650,37.75158031,137.63,137.6,0.04808029]
[1741487153452,37.75158031,137.63,137.61,7.268]
[1741487153754,37.75158031,137.63,137.6,0.04808029]
[1741487154051,11.47758971,137.61,137.52,11.47758971]
[1741487154248,11.47758971,137.58,137.52,17.33148971]
[1741487154753,11.47758971,137.58,137.56,7.2704]
[1741487155144,11.52962336,137.58,137.56,7.32001282]
[1741487155650,11.52962336,137.58,137.56,0.04961282]
[1741487156047,11.52962336,137.58,137.56,7.32031282]
[1741487158551,26.22,137.57,137.56,0.04961282]
[1741487158849,26.22,137.57,137.49,11.47758971]
[1741487159045,11.47758971,137.54,137.49,11.47758971]
[1741487159857,0.0506763,137.53,137.5,0.04652422]
[1741487160156,0.0506763,137.53,137.51,7.2731]
[1741487160356,0.0506763,137.53,137.5,0.04652422]
[1741487161157,0.0506763,137.53,137.51,7.2735]
[1741487161854,11.47758971,137.52,137.5,0.04652422]
[1741487162853,11.47758971,137.52,137.51,7.273]
[1741487164579,11.47758971,137.52,137.5,0.04652422]
[1741487165371,11.47758971,137.52,137.5,7.32042422]
[1741487166569,11.47758971,137.52,137.51,7.2735]
[1741487166769,11.47758971,137.52,137.5,0.04652422]
[1741487167473,11.47758971,137.52,137.5,7.32042422]
[1741487167773,11.47758971,137.52,137.5,0.04652422]
[1741487169068,11.47758971,137.52,137.5,7.32002422]
[1741487169278,11.47758971,137.52,137.5,0.04652422]
[1741487169874,11.47758971,137.52,137.5,7.32042422]
[1741487171176,11.47758971,137.52,137.5,0.04652422]
[1741487171479,11.47758971,137.52,137.51,7.2735]
[1741487171872,0.0506763,137.53,137.52,7.2729]
[1741487175773,0.0506763,137.53,137.51,7.2733]
[1741487176169,0.0506763,137.53,137.52,7.2729]
[1741487180078,11.47758971,137.58,137.57,7.2703]
[1741487180979,11.47758971,137.6,137.57,7.2703]
[1741487181380,0.04671094,137.59,137.57,7.2703]
[1741487181578,0.04671094,137.59,137.58,7.2698]
[1741487181782,0.04671094,137.59,137.58,18.74738971]
[1741487181987,11.47758971,137.64,137.61,7.2678]
[1741487183274,11.53231139,137.64,137.61,7.31691562]
[1741487185687,11.53231139,137.64,137.61,0.04911562]
[1741487190384,11.53231139,137.64,137.62,7.2676]
[1741487190588,0.05472168,137.64,137.61,0.04911562]
[1741487190788,0.05472168,137.64,137.63,7.2671]
[1741487191287,11.47758971,137.7,137.67,7.2646]
[1741487192383,11.52466229,137.7,137.67,7.31713397]
[1741487192983,11.52466229,137.7,137.67,0.05253397]
[1741487193183,11.47758971,137.68,137.67,0.05253397]
[1741487196895,11.47758971,137.68,137.6,26.22]
[1741487197186,11.47758971,137.65,137.6,26.22]
[1741487198088,0.05355129,137.64,137.61,0.05525086]
[1741487199086,7.32015129,137.64,137.61,0.05525086]
[1741487199891,7.2671,137.63,137.61,0.05525086]
[1741487200086,0.05355129,137.64,137.61,0.05525086]
[1741487200889,7.32035129,137.64,137.61,0.05525086]
[1741487201291,0.05355129,137.64,137.61,0.05525086]
[1741487201491,7.32015129,137.64,137.61,0.05525086]
[1741487204498,0.05355129,137.64,137.61,0.05525086]
[1741487204895,0.05355129,137.64,137.61,7.32305086]
[1741487205698,0.05355129,137.64,137.61,37.75284057]
[1741487206301,0.05355129,137.64,137.63,7.2671]
[1741487211103,0.05355129,137.64,137.62,7.2674]
[1741487212198,0.05355129,137.64,137.61,26.27525086]
[1741487212403,11.47758971,137.63,137.61,0.05525086]
[1741487213701,7.2676,137.62,137.61,0.05525086]
[1741487214299,15.329241,137.64,137.61,0.05525086]
[1741487214506,0.05355129,137.64,137.61,0.05525086]
[1741487215201,0.05355129,137.64,137.61,11.53284057]
[1741487216409,0.05355129,137.64,137.63,7.2671]
[1741487221817,0.05355129,137.64,137.61,0.05525086]
[1741487223018,0.05355129,137.64,137.62,7.2673]
[1741487224018,0.05355129,137.64,137.61,7.32325086]
[1741487224210,0.05355129,137.64,137.61,0.05525086]
[1741487225319,0.05355129,137.64,137.61,7.32335086]
[1741487227919,0.05355129,137.64,137.61,0.05525086]
[1741487228520,7.32065129,137.64,137.61,0.05525086]
[1741487229319,7.32065129,137.64,137.61,7.32335086]
[1741487229814,0.05355129,137.64,137.61,7.32335086]
[1741487230020,0.05355129,137.64,137.62,7.2676]
[1741487230719,0.05355129,137.64,137.63,7.2671]
[1741487233719,0.05355129,137.64,137.62,7.2674]
[1741487234025,0.05355129,137.64,137.61,26.25525086]
[1741487234724,0.05355129,137.64,137.61,33.52325086]
[1741487235024,0.05355129,137.64,137.61,26.25525086]
[1741487235826,0.05355129,137.64,137.62,7.2673]
[1741487236024,0.05355129,137.64,137.61,26.25525086]
[1741487236922,0.05355129,137.64,137.62,7.2673]
[1741487237324,0.05355129,137.64,137.63,7.2671]
[1741487237524,0.05355129,137.64,137.61,37.74904627]
[1741487237922,0.05355129,137.64,137.62,7.2674]
[1741487239428,0.05355129,137.64,137.63,18.76089541]
[1741487241522,47.19767655,137.71,137.67,7.2649]
[1741487241832,73.39767655,137.71,137.66,11.49379541]
[1741487242025,7.2635,137.7,137.66,18.75909541]
[1741487242230,11.49379541,137.7,137.66,11.49379541]
[1741487242730,7.31962471,137.69,137.67,0.05145094]
[1741487243123,37.69379541,137.68,137.67,0.05145094]
[1741487243335,44.95829541,137.68,137.67,0.05145094]
[1741487243526,26.2,137.68,137.67,0.05145094]
[1741487244422,0.05532471,137.69,137.67,0.05145094]
[1741487248728,0.05532471,137.69,137.67,7.31635094]
[1741487249327,0.05532471,137.69,137.67,0.05145094]
[1741487250734,0.05532471,137.69,137.67,7.31615094]
[1741487251733,0.05532471,137.69,137.68,18.75829541]
[1741487252035,67.68701584,137.76,137.68,11.49379541]
[1741487252234,74.94731584,137.76,137.72,7.2623]
[1741487252639,67.68701584,137.76,137.72,7.2623]
[1741487253033,0.04577674,137.75,137.73,0.04752866]
[1741487253337,11.49379541,137.74,137.73,0.04752866]
[1741487253839,0.04577674,137.75,137.73,0.04752866]
[1741487254338,0.04577674,137.75,137.73,7.30902866]
[1741487254937,0.04577674,137.75,137.73,0.04752866]
[1741487260648,7.2613,137.74,137.73,0.04752866]
[1741487263046,33.4413,137.74,137.73,0.04752866]
[1741487263849,33.4413,137.74,137.73,2.866e-05]
[1741487264946,26.18,137.74,137.73,2.866e-05]
[1741487266138,33.4413,137.74,137.73,2.866e-05]
[1741487266547,0.04577674,137.75,137.73,11.49382407]
[1741487268450,0.04577674,137.75,137.74,7.2613]
[1741487272349,11.49379541,137.82,137.73,37.67382407]
[1741487272650,11.49379541,137.82,137.77,11.49379541]
[1741487273443,0.04737694,137.81,137.79,7.2583]
[1741487273642,0.04737694,137.81,137.78,0.05444105]
[1741487276148,0.04737694,137.81,137.78,7.31344105]
[1741487277857,0.04737694,137.81,137.78,0.05444105]
[1741487278052,0.04737694,137.81,137.79,18.75239541]
[1741487278555,41.57029541,137.86,137.79,11.49379541]
[1741487278755,41.57029541,137.86,137.81,11.49379541]
[1741487278756,26.16,137.86,137.81,11.49379541]
[1741487279151,26.16,137.86,137.82,7.2568]
[1741487279752,0.04364475,137.85,137.83,11.54754846]
[1741487280458,0.04364475,137.85,137.84,7.256]
[1741487281359,0.04364475,137.85,137.83,11.54754846]
[1741487281560,0.04364475,137.85,137.83,18.80394846]
[1741487283059,0.04364475,137.85,137.83,11.54754846]
[1741487287662,0.04364475,137.85,137.83,18.80414846]
[1741487290065,0.04364475,137.85,137.83,11.54754846]
[1741487290262,0.04364475,137.85,137.83,0.05375305]
[1741487290761,0.04364475,137.85,137.83,18.80394846]
[1741487290965,0.04364475,137.85,137.83,11.54754846]
[1741487291465,0.04364475,137.85,137.84,7.256]
[1741487292464,15.59109541,137.9,137.85,7.2555]
[1741487292867,15.59109541,137.9,137.85,18.74929541]
[1741487293167,7.2537,137.89,137.85,11.49379541]
[1741487293368,11.49379541,137.88,137.83,37.63379541]
[1741487293668,11.49379541,137.88,137.86,0.05472163]
[1741487293669,18.74809541,137.88,137.86,0.05472163]
[1741487293968,15.59109541,137.9,137.86,0.05472163]
[1741487294266,15.59109541,137.9,137.86,7.30942163]
[1741487295056,22.84399541,137.9,137.86,7.30942163]
[1741487295269,15.59109541,137.9,137.86,0.05472163]
[1741487295864,7.2537,137.89,137.86,0.05472163]
[1741487298963,11.49379541,137.88,137.86,0.05472163]
[1741487299470,33.3936,137.89,137.86,0.05472163]
[1741487299967,11.49379541,137.9,137.86,7.30962163]
[1741487300166,11.49379541,137.9,137.86,0.05472163]
[1741487300567,18.74679541,137.9,137.86,7.30952163]
[1741487303870,7.253,137.9,137.86,7.30952163]
[1741487304168,7.2527,137.91,137.86,7.30952163]
[1741487305269,7.253,137.9,137.86,7.30952163]
[1741487305569,7.253,137.9,137.86,0.05472163]
[1741487306271,7.2534,137.89,137.86,0.05472163]
[1741487307070,7.253,137.9,137.86,0.05472163]
[1741487307476,37.63379541,137.92,137.86,0.05472163]
[1741487307776,7.2525,137.91,137.86,7.30922163]
[1741487308874,37.63379541,137.92,137.86,0.05472163]
[1741487309972,11.49379541,137.9,137.86,0.05472163]
[1741487310975,7.2543,137.88,137.86,0.05472163]
[1741487312272,11.49379541,137.88,137.86,0.05472163]
[1741487312474,7.2545,137.87,137.86,0.05472163]
[1741487313176,18.74899541,137.86,137.81,44.89119541]
[1741487313674,18.74899541,137.86,137.81,18.75119541]
[1741487314075,0.05270861,137.85,137.82,0.0538848]
[1741487315878,0.05270861,137.85,137.82,7.3108848]
[1741487321889,0.05270861,137.85,137.82,0.0538848]
[1741487322087,0.05270861,137.85,137.83,7.2565]
[1741487324389,0.05270861,137.85,137.84,7.256]
[1741487327792,30.01322043,137.9,137.83,17.69079541]
[1741487328097,30.01322043,137.9,137.88,7.2539]
[1741487328890,30.01322043,137.9,137.87,11.49379541]
[1741487329192,30.01322043,137.9,137.89,18.74719541]
[1741487330388,18.74469541,137.94,137.9,7.2526]
[1741487330597,18.74469541,137.94,137.89,11.49379541]
[1741487330598,11.49379541,137.94,137.89,11.49379541]
[1741487330798,7.2518,137.92,137.89,11.49379541]
[1741487331094,11.49379541,137.94,137.89,11.49379541]
[1741487331697,11.49379541,137.92,137.88,0.04733388]
[1741487331897,37.63379541,137.92,137.88,0.04733388]
[1741487332893,44.88579541,137.92,137.88,0.04733388]
[1741487333394,37.63379541,137.92,137.88,0.04733388]
[1741487333595,7.2524,137.91,137.88,0.04733388]
[1741487337701,37.63379541,137.92,137.88,0.04733388]
[1741487337891,7.2525,137.91,137.88,0.04733388]
[1741487338703,7.2531,137.9,137.88,0.04733388]
[1741487339001,11.49379541,137.9,137.88,0.04733388]
[1741487339401,7.2534,137.89,137.88,0.04733388]
[1741487340704,7.255,137.86,137.81,26.12]
[1741487340904,11.49379541,137.86,137.76,5.8294]